[Event "GrandPrix_30.05"]
[Site "Chess.com"]
[Date "2020.05.30"]
[Round "2"]
[White "bratkoo"]
[Black "Tokarev_Sergey"]
[Result "1-0"]
[WhiteElo "2208"]
[BlackElo "1992"]
[TimeControl "600+2"]
[EndTime "8:39:56 PDT"]
[Termination "bratkoo won by resignation"]

1. e4 {[%clk 0:10:01.9]} 1... e6 {[%clk 0:09:59]} 2. d4 {[%clk 0:10:02.5]} 2...
d5 {[%clk 0:09:59.1]} 3. Nd2 {[%clk 0:10:03.6]} 3... c5 {[%clk 0:09:59]} 4. Ngf3
{[%clk 0:10:04.3]} 4... cxd4 {[%clk 0:09:59.2]} 5. exd5 {[%clk 0:10:00.8]} 5...
exd5 {[%clk 0:10:00.1]} 6. Nxd4 {[%clk 0:09:52.4]} 6... Nf6 {[%clk 0:09:59.8]}
7. Bd3 {[%clk 0:09:51.3]} 7... Bc5 {[%clk 0:09:58.6]} 8. N2b3 {[%clk 0:09:51.5]}
8... Bxd4 {[%clk 0:09:57.3]} 9. Nxd4 {[%clk 0:09:52]} 9... O-O {[%clk
0:09:56.7]} 10. O-O {[%clk 0:09:52.6]} 10... Nc6 {[%clk 0:09:54.8]} 11. Nxc6
{[%clk 0:09:46.8]} 11... bxc6 {[%clk 0:09:56.7]} 12. h3 {[%clk 0:09:47.3]} 12...
c5 {[%clk 0:09:54.1]} 13. Bg5 {[%clk 0:09:45.2]} 13... Qb6 {[%clk 0:09:36.9]}
14. b3 {[%clk 0:09:39.7]} 14... Bb7 {[%clk 0:09:32.8]} 15. c4 {[%clk 0:09:37.2]}
15... d4 {[%clk 0:09:29.1]} 16. Bxf6 {[%clk 0:09:37.7]} 16... Qxf6 {[%clk
0:09:28.4]} 17. Qh5 {[%clk 0:09:38.3]} 17... g6 {[%clk 0:09:09.9]} 18. Qxc5
{[%clk 0:09:35.6]} 18... Rfc8 {[%clk 0:09:04.7]} 19. Qa5 {[%clk 0:09:32.5]}
19... Qc6 {[%clk 0:09:01.7]} 20. f3 {[%clk 0:09:33.2]} 20... Qd6 {[%clk
0:08:48.3]} 21. Rfe1 {[%clk 0:09:29.8]} 21... Qg3 {[%clk 0:08:42.7]} 22. Qe5
{[%clk 0:09:28.4]} 22... Qh4 {[%clk 0:08:30.7]} 23. Be4 {[%clk 0:09:16.2]} 23...
Re8 {[%clk 0:08:11.9]} 24. Qxd4 {[%clk 0:09:15.5]} 24... Rad8 {[%clk 0:08:13.3]}
25. Qf2 {[%clk 0:09:16.1]} 25... Qxf2+ {[%clk 0:07:33]} 26. Kxf2 {[%clk
0:09:16.7]} 26... Rd2+ {[%clk 0:07:33]} 27. Kf1 {[%clk 0:09:17.6]} 27... Bc8
{[%clk 0:07:25.1]} 28. Bd5 {[%clk 0:09:13]} 28... Rxe1+ {[%clk 0:07:16]} 29.
Rxe1 {[%clk 0:09:13.1]} 29... Kf8 {[%clk 0:07:07.5]} 30. Re2 {[%clk 0:09:12.9]}
30... Rd1+ {[%clk 0:07:05]} 31. Kf2 {[%clk 0:09:13.7]} 31... Bf5 {[%clk
0:07:05.7]} 32. Be4 {[%clk 0:09:06.1]} 32... Be6 {[%clk 0:07:06.6]} 33. Ke3
{[%clk 0:09:04.6]} 33... Ke7 {[%clk 0:07:00.8]} 34. Rd2 {[%clk 0:09:04.8]} 34...
Re1+ {[%clk 0:07:00.4]} 35. Kd4 {[%clk 0:09:05.5]} 35... f5 {[%clk 0:07:01.2]}
36. Bd5 {[%clk 0:09:05.2]} 36... Bc8 {[%clk 0:07:00.9]} 37. c5 {[%clk
0:09:05.2]} 37... Rc1 {[%clk 0:06:59.4]} 38. Re2+ {[%clk 0:09:01.7]} 38... Kd8
{[%clk 0:06:59.4]} 39. c6 {[%clk 0:08:55.9]} 39... Ba6 {[%clk 0:06:55.1]} 40.
Bc4 {[%clk 0:08:55.9]} 40... Rd1+ {[%clk 0:06:54.8]} 41. Kc5 {[%clk 0:08:56.2]}
41... Bc8 {[%clk 0:06:43.6]} 42. Re5 {[%clk 0:08:44.9]} 42... Rg1 {[%clk
0:06:40]} 43. Kd6 {[%clk 0:08:43.9]} 43... Rd1+ {[%clk 0:06:33]} 44. Bd5 {[%clk
0:08:44.4]} 44... Rc1 {[%clk 0:06:32.1]} 45. Bf7 {[%clk 0:08:41.8]} 45... Rd1+
{[%clk 0:06:27.9]} 46. Rd5 {[%clk 0:08:42.9]} 46... Rxd5+ {[%clk 0:06:20.6]} 47.
Bxd5 {[%clk 0:08:42.5]} 1-0

[Event "GrandPrix_30.05"]
[Site "Chess.com"]
[Date "2020.05.30"]
[Round "2"]
[White "MirMan90"]
[Black "FCLitras"]
[Result "1-0"]
[WhiteElo "2192"]
[BlackElo "1907"]
[TimeControl "600+2"]
[EndTime "8:40:59 PDT"]
[Termination "MirMan90 won by resignation"]

1. e4 {[%clk 0:10:01.9]} 1... c6 {[%clk 0:10:00.1]} 2. d4 {[%clk 0:10:02.1]}
2... d5 {[%clk 0:10:01.3]} 3. Nc3 {[%clk 0:09:59.5]} 3... dxe4 {[%clk
0:10:01.9]} 4. Nxe4 {[%clk 0:10:00.8]} 4... Bf5 {[%clk 0:10:00.8]} 5. Ng3 {[%clk
0:10:01.3]} 5... Bg6 {[%clk 0:10:01.9]} 6. h4 {[%clk 0:09:45.5]} 6... h6 {[%clk
0:10:02.5]} 7. Nh3 {[%clk 0:09:46.3]} 7... e6 {[%clk 0:09:43.7]} 8. Nf4 {[%clk
0:09:44.4]} 8... Bh7 {[%clk 0:09:44.5]} 9. Bc4 {[%clk 0:09:45.2]} 9... Nf6
{[%clk 0:09:43.6]} 10. O-O {[%clk 0:09:08.2]} 10... Bd6 {[%clk 0:09:38.6]} 11.
Re1 {[%clk 0:09:04]} 11... O-O {[%clk 0:09:34.4]} 12. c3 {[%clk 0:08:52.4]}
12... Nd5 {[%clk 0:09:04.3]} 13. Qg4 {[%clk 0:08:34.9]} 13... Nxf4 {[%clk
0:08:56.6]} 14. Bxf4 {[%clk 0:08:34.1]} 14... Bxf4 {[%clk 0:08:57.6]} 15. Qxf4
{[%clk 0:08:35.1]} 15... Nd7 {[%clk 0:08:58.6]} 16. Re2 {[%clk 0:08:22.7]} 16...
Qf6 {[%clk 0:08:39.8]} 17. Qc7 {[%clk 0:08:07.8]} 17... Nb6 {[%clk 0:08:40.2]}
18. Bb3 {[%clk 0:08:08.5]} 18... Rab8 {[%clk 0:08:37.4]} 19. h5 {[%clk
0:08:04.3]} 19... Nd5 {[%clk 0:08:23.7]} 20. Bxd5 {[%clk 0:08:01.3]} 20... cxd5
{[%clk 0:08:25.6]} 21. Re3 {[%clk 0:07:51.4]} 21... Rfc8 {[%clk 0:08:23]} 22.
Qd6 {[%clk 0:07:45.9]} 22... Rd8 {[%clk 0:08:21.7]} 23. Qa3 {[%clk 0:07:40.3]}
23... a6 {[%clk 0:08:18.2]} 24. Rf3 {[%clk 0:07:40.5]} 24... Qg5 {[%clk
0:08:19]} 25. Re1 {[%clk 0:07:40.6]} 25... Re8 {[%clk 0:07:30]} 26. Qd6 {[%clk
0:07:36.1]} 26... Red8 {[%clk 0:07:26.6]} 27. Qc7 {[%clk 0:07:35]} 27... Rf8
{[%clk 0:07:24.1]} 28. Rxf7 {[%clk 0:07:23.7]} 28... Rxf7 {[%clk 0:07:06.8]} 29.
Qxb8+ {[%clk 0:07:24.7]} 29... Rf8 {[%clk 0:07:08.2]} 30. Qd6 {[%clk 0:06:52]}
30... Qd2 {[%clk 0:07:00.2]} 31. Qxe6+ {[%clk 0:06:52.1]} 31... Kh8 {[%clk
0:07:01.3]} 32. Qe2 {[%clk 0:06:50.8]} 32... Qf4 {[%clk 0:07:02.1]} 33. Qe3
{[%clk 0:06:44.9]} 33... Qf6 {[%clk 0:07:00.3]} 34. f3 {[%clk 0:06:28.5]} 34...
Qh4 {[%clk 0:07:00.3]} 35. Qe7 {[%clk 0:06:21.8]} 35... Rf6 {[%clk 0:07:00.8]}
36. Qd8+ {[%clk 0:06:16.7]} 36... Bg8 {[%clk 0:07:01.7]} 37. Re8 {[%clk
0:06:17.5]} 37... Qxg3 {[%clk 0:07:00.3]} 38. Rxg8+ {[%clk 0:06:18.2]} 1-0

[Event "GrandPrix_30.05"]
[Site "Chess.com"]
[Date "2020.05.30"]
[Round "2"]
[White "ZEN-22"]
[Black "Arasvard"]
[Result "1-0"]
[WhiteElo "2201"]
[BlackElo "1983"]
[TimeControl "600+2"]
[EndTime "8:41:02 PDT"]
[Termination "ZEN-22 won by resignation"]

1. e4 {[%clk 0:10:01.9]} 1... c5 {[%clk 0:09:58]} 2. b4 {[%clk 0:09:59.3]} 2...
cxb4 {[%clk 0:09:56.1]} 3. a3 {[%clk 0:10:00.1]} 3... d5 {[%clk 0:09:53.7]} 4.
exd5 {[%clk 0:09:56.3]} 4... Qxd5 {[%clk 0:09:49.4]} 5. Nf3 {[%clk 0:09:57]}
5... Nf6 {[%clk 0:09:47.9]} 6. axb4 {[%clk 0:09:56.7]} 6... Bg4 {[%clk
0:09:48.7]} 7. Nc3 {[%clk 0:09:56.8]} 7... Qd7 {[%clk 0:09:35.6]} 8. h3 {[%clk
0:09:46.9]} 8... Bxf3 {[%clk 0:09:36.4]} 9. Qxf3 {[%clk 0:09:46.7]} 9... Nc6
{[%clk 0:09:38]} 10. Bb5 {[%clk 0:09:47.2]} 10... e6 {[%clk 0:09:37.2]} 11. Bxc6
{[%clk 0:09:47.8]} 11... bxc6 {[%clk 0:09:36.1]} 12. b5 {[%clk 0:09:48.3]} 12...
Nd5 {[%clk 0:09:21.4]} 13. bxc6 {[%clk 0:09:47.6]} 13... Qxc6 {[%clk 0:09:21.9]}
14. Nxd5 {[%clk 0:09:47.7]} 14... Qxd5 {[%clk 0:09:22.2]} 15. Qxd5 {[%clk
0:09:47.9]} 15... exd5 {[%clk 0:09:24.1]} 16. Ra5 {[%clk 0:09:47.9]} 16... d4
{[%clk 0:09:19.9]} 17. Bb2 {[%clk 0:09:45.5]} 17... Rb8 {[%clk 0:09:20.1]} 18.
Bc1 {[%clk 0:09:27.3]} 18... d3 {[%clk 0:08:48]} 19. cxd3 {[%clk 0:09:22.9]}
19... Rb7 {[%clk 0:08:30.6]} 20. O-O {[%clk 0:09:22.2]} 20... Bd6 {[%clk
0:08:29.3]} 21. Re1+ {[%clk 0:09:03.3]} 21... Kd7 {[%clk 0:08:30.1]} 22. Ba3
{[%clk 0:09:04.6]} 22... Rc8 {[%clk 0:08:15.9]} 23. Kf1 {[%clk 0:08:31.6]} 23...
Rc2 {[%clk 0:07:55.9]} 24. Ke2 {[%clk 0:08:26.8]} 24... Ra2 {[%clk 0:07:41.6]}
25. Bb4 {[%clk 0:08:20]} 25... Rxa5 {[%clk 0:07:38.4]} 26. Bxa5 {[%clk
0:08:20.8]} 26... Kc6 {[%clk 0:07:26.8]} 27. d4 {[%clk 0:08:04.6]} 27... Kd5
{[%clk 0:07:25.4]} 28. Kd3 {[%clk 0:08:04.7]} 28... Rb3+ {[%clk 0:07:20.6]} 29.
Bc3 {[%clk 0:08:03]} 29... Ra3 {[%clk 0:07:15.3]} 30. Re8 {[%clk 0:08:01.6]}
30... h5 {[%clk 0:07:00.4]} 31. g4 {[%clk 0:07:59.4]} 31... hxg4 {[%clk
0:07:00.8]} 32. hxg4 {[%clk 0:08:00.4]} 32... g6 {[%clk 0:07:00.5]} 33. f3
{[%clk 0:07:48.9]} 33... a5 {[%clk 0:06:54.5]} 34. Ra8 {[%clk 0:07:48.7]} 34...
a4 {[%clk 0:06:54.7]} 35. Ra5+ {[%clk 0:07:46.7]} 35... Kc6 {[%clk 0:06:54.5]}
36. Kc4 {[%clk 0:07:47.6]} 36... Ra2 {[%clk 0:06:49.9]} 37. Ra6+ {[%clk
0:07:43.1]} 37... Kd7 {[%clk 0:06:46.3]} 38. Kd5 {[%clk 0:07:43.6]} 38... Bf4
{[%clk 0:06:44.6]} 39. Ra7+ {[%clk 0:07:43.1]} 39... Ke8 {[%clk 0:06:45]} 40.
Bb4 {[%clk 0:07:28.6]} 40... f5 {[%clk 0:06:45.4]} 41. gxf5 {[%clk 0:07:28.1]}
41... gxf5 {[%clk 0:06:47.3]} 42. Ke6 {[%clk 0:07:28]} 42... Kd8 {[%clk
0:06:42]} 43. Kxf5 {[%clk 0:07:11.9]} 43... Bc7 {[%clk 0:06:42.7]} 44. Ke6
{[%clk 0:07:08.1]} 44... Ra1 {[%clk 0:06:39.2]} 1-0

[Event "GrandPrix_30.05"]
[Site "Chess.com"]
[Date "2020.05.30"]
[Round "2"]
[White "Karateloru"]
[Black "Gurvich_Vitaly"]
[Result "1-0"]
[WhiteElo "2186"]
[BlackElo "2262"]
[TimeControl "600+2"]
[EndTime "8:42:55 PDT"]
[Termination "Karateloru won by checkmate"]

1. e4 {[%clk 0:10:01.9]} 1... c5 {[%clk 0:09:59.8]} 2. Nf3 {[%clk 0:10:02.3]}
2... Nc6 {[%clk 0:09:59.7]} 3. d4 {[%clk 0:10:00.8]} 3... cxd4 {[%clk
0:10:01.6]} 4. Nxd4 {[%clk 0:10:02.3]} 4... e5 {[%clk 0:10:03]} 5. Nf3 {[%clk
0:09:57.5]} 5... Nf6 {[%clk 0:10:02.7]} 6. Bd3 {[%clk 0:09:55]} 6... d5 {[%clk
0:09:40.8]} 7. exd5 {[%clk 0:09:55.4]} 7... Qxd5 {[%clk 0:09:42.7]} 8. O-O
{[%clk 0:09:54.3]} 8... Be7 {[%clk 0:09:39.5]} 9. Nc3 {[%clk 0:09:54.5]} 9...
Qa5 {[%clk 0:09:40.2]} 10. Bg5 {[%clk 0:09:50.1]} 10... O-O {[%clk 0:09:37.4]}
11. Bxf6 {[%clk 0:09:42.4]} 11... Bxf6 {[%clk 0:09:39.3]} 12. Nd5 {[%clk
0:09:43]} 12... Rd8 {[%clk 0:09:13.3]} 13. Nxf6+ {[%clk 0:09:32.1]} 13... gxf6
{[%clk 0:09:14.4]} 14. Nd2 {[%clk 0:09:31.4]} 14... f5 {[%clk 0:09:13.9]} 15.
Nc4 {[%clk 0:09:25.6]} 15... Qd5 {[%clk 0:09:14.1]} 16. Qh5 {[%clk 0:09:24.6]}
16... e4 {[%clk 0:09:12.1]} 17. Qg5+ {[%clk 0:09:12.2]} 17... Kf8 {[%clk
0:09:12.6]} 18. Ne3 {[%clk 0:08:55.4]} 18... Qe5 {[%clk 0:09:12.4]} 19. Bc4
{[%clk 0:08:43.9]} 19... Rd6 {[%clk 0:09:08.7]} 20. Qh5 {[%clk 0:08:26.8]} 20...
Kg7 {[%clk 0:09:04.5]} 21. Qxf7+ {[%clk 0:08:26.7]} 21... Kh6 {[%clk 0:09:00]}
22. Qf8+ {[%clk 0:08:25.6]} 22... Kg5 {[%clk 0:09:00.4]} 23. f4+ {[%clk
0:07:40.5]} 23... exf3 {[%clk 0:09:00.1]} 24. Rxf3 {[%clk 0:07:40.7]} 24... f4
{[%clk 0:08:56.1]} 25. h4+ {[%clk 0:07:35.4]} 25... Kxh4 {[%clk 0:08:50.3]} 26.
Rxf4+ {[%clk 0:07:31.4]} 26... Kg5 {[%clk 0:08:47.8]} 27. Rf2 {[%clk 0:07:01.7]}
27... Rg6 {[%clk 0:08:41.7]} 28. Re1 {[%clk 0:06:41.2]} 28... Rb8 {[%clk
0:08:36.9]} 29. Bd3 {[%clk 0:04:41.3]} 29... Rg7 {[%clk 0:08:19.5]} 30. Qf3
{[%clk 0:03:49.7]} 30... Nd4 {[%clk 0:08:14.4]} 31. Qd5 {[%clk 0:03:49.3]} 31...
Qxd5 {[%clk 0:08:14.5]} 32. Nxd5 {[%clk 0:03:49.3]} 32... Bg4 {[%clk 0:08:11.8]}
33. Re5+ {[%clk 0:03:47.6]} 33... Kh4 {[%clk 0:08:09]} 34. Re4 {[%clk
0:03:45.7]} 34... Nc6 {[%clk 0:08:02.3]} 35. Ne3 {[%clk 0:03:45.4]} 35... Kg3
{[%clk 0:07:36.9]} 36. Rxg4+ {[%clk 0:03:44.7]} 36... Rxg4 {[%clk 0:07:36.7]}
37. Nf5# {[%clk 0:03:45.7]} 1-0

[Event "GrandPrix_30.05"]
[Site "Chess.com"]
[Date "2020.05.30"]
[Round "2"]
[White "AliKa2810"]
[Black "EvgenyPigusov"]
[Result "1-0"]
[WhiteElo "2190"]
[BlackElo "2234"]
[TimeControl "600+2"]
[EndTime "8:43:35 PDT"]
[Termination "AliKa2810 won by resignation"]

1. d4 {[%clk 0:10:01.9]} 1... Nf6 {[%clk 0:10:00]} 2. c4 {[%clk 0:10:01.3]} 2...
c5 {[%clk 0:10:00.6]} 3. d5 {[%clk 0:10:01.9]} 3... e6 {[%clk 0:10:01.7]} 4. Nc3
{[%clk 0:10:02.6]} 4... exd5 {[%clk 0:10:02.9]} 5. cxd5 {[%clk 0:10:04.5]} 5...
d6 {[%clk 0:10:04.3]} 6. Nf3 {[%clk 0:10:04.9]} 6... g6 {[%clk 0:10:04.6]} 7.
Nd2 {[%clk 0:10:05.8]} 7... Nbd7 {[%clk 0:10:02.9]} 8. e4 {[%clk 0:10:06.6]}
8... Bg7 {[%clk 0:09:58]} 9. Be2 {[%clk 0:10:07.3]} 9... O-O {[%clk 0:09:57.7]}
10. O-O {[%clk 0:10:08.4]} 10... Re8 {[%clk 0:09:55.6]} 11. h3 {[%clk
0:10:09.2]} 11... a6 {[%clk 0:09:47.5]} 12. a4 {[%clk 0:10:09.2]} 12... Rb8
{[%clk 0:09:31]} 13. a5 {[%clk 0:10:03.5]} 13... h6 {[%clk 0:08:15.1]} 14. Ra3
{[%clk 0:09:49.9]} 14... g5 {[%clk 0:08:07.5]} 15. f4 {[%clk 0:09:49.4]} 15...
gxf4 {[%clk 0:08:05.8]} 16. Rxf4 {[%clk 0:09:50.3]} 16... Ne5 {[%clk 0:08:06.9]}
17. Rf2 {[%clk 0:09:46.2]} 17... Ng6 {[%clk 0:08:05.5]} 18. Qf1 {[%clk
0:09:28.7]} 18... Qe7 {[%clk 0:07:57.9]} 19. Nc4 {[%clk 0:09:16.7]} 19... Bd7
{[%clk 0:07:52.9]} 20. Bxh6 {[%clk 0:07:18.1]} 20... Bxh6 {[%clk 0:07:52.7]} 21.
Rxf6 {[%clk 0:07:19.2]} 21... Bg7 {[%clk 0:07:54]} 22. Rxd6 {[%clk 0:07:09.8]}
22... Bb5 {[%clk 0:07:53.8]} 23. Rb6 {[%clk 0:06:55.5]} 23... Bxc4 {[%clk
0:07:38.9]} 24. Bxc4 {[%clk 0:06:55.5]} 24... Bd4+ {[%clk 0:06:59.8]} 25. Kh1
{[%clk 0:06:55.6]} 25... Ne5 {[%clk 0:07:01]} 26. Ne2 {[%clk 0:04:50.8]} 26...
Nxc4 {[%clk 0:06:57.5]} 27. Nxd4 {[%clk 0:04:50.8]} 27... Nxb6 {[%clk
0:05:43.3]} 28. Rg3+ {[%clk 0:04:50.4]} 28... Kf8 {[%clk 0:05:19.3]} 29. Ne6+
{[%clk 0:04:49.8]} 1-0

[Event "GrandPrix_30.05"]
[Site "Chess.com"]
[Date "2020.05.30"]
[Round "2"]
[White "VerdeNotte"]
[Black "jncool68"]
[Result "1-0"]
[WhiteElo "2763"]
[BlackElo "2346"]
[TimeControl "600+2"]
[EndTime "8:43:45 PDT"]
[Termination "VerdeNotte won by resignation"]

1. e4 {[%clk 0:10:01.9]} 1... e5 {[%clk 0:09:59.5]} 2. Nf3 {[%clk 0:10:02.3]}
2... Nc6 {[%clk 0:10:00.4]} 3. Bc4 {[%clk 0:10:03.4]} 3... Bc5 {[%clk
0:09:59.7]} 4. c3 {[%clk 0:10:04]} 4... Nf6 {[%clk 0:09:58.7]} 5. d4 {[%clk
0:10:05.4]} 5... exd4 {[%clk 0:09:58.6]} 6. e5 {[%clk 0:10:06.8]} 6... d5 {[%clk
0:09:58.8]} 7. Bb5 {[%clk 0:10:08.1]} 7... Ne4 {[%clk 0:09:56.4]} 8. cxd4 {[%clk
0:10:09.5]} 8... Bb6 {[%clk 0:09:51.8]} 9. Nc3 {[%clk 0:10:10.4]} 9... O-O
{[%clk 0:09:47.5]} 10. Be3 {[%clk 0:10:08.2]} 10... Bf5 {[%clk 0:09:46.3]} 11.
O-O {[%clk 0:09:50.1]} 11... Ne7 {[%clk 0:09:33.6]} 12. Nh4 {[%clk 0:09:47.1]}
12... c6 {[%clk 0:09:13.2]} 13. Bd3 {[%clk 0:09:45.3]} 13... Nxc3 {[%clk
0:09:03.5]} 14. bxc3 {[%clk 0:09:47.2]} 14... Bxd3 {[%clk 0:08:55.4]} 15. Qxd3
{[%clk 0:09:49.1]} 15... f6 {[%clk 0:08:54]} 16. exf6 {[%clk 0:09:24.4]} 16...
Rxf6 {[%clk 0:08:41.2]} 17. Bg5 {[%clk 0:09:08.1]} 17... Rf7 {[%clk 0:08:42]}
18. Nf3 {[%clk 0:07:30.5]} 18... Bc7 {[%clk 0:08:38.6]} 19. Ne5 {[%clk
0:07:27.1]} 19... Bxe5 {[%clk 0:08:10.8]} 20. dxe5 {[%clk 0:07:29]} 20... Qd7
{[%clk 0:08:11.1]} 21. Rae1 {[%clk 0:07:19.3]} 21... Qe6 {[%clk 0:08:09.2]} 22.
Bxe7 {[%clk 0:07:13.3]} 22... Rxe7 {[%clk 0:08:02.3]} 23. f4 {[%clk 0:07:11.9]}
23... g6 {[%clk 0:08:03.1]} 24. f5 {[%clk 0:06:58.8]} 24... gxf5 {[%clk
0:08:03]} 25. Rxf5 {[%clk 0:07:00.2]} 25... Rf8 {[%clk 0:07:56.1]} 26. Qg3+
{[%clk 0:05:52.2]} 26... Rg7 {[%clk 0:07:53.2]} 27. Rxf8+ {[%clk 0:05:51.8]}
27... Kxf8 {[%clk 0:07:55.1]} 28. Qf2+ {[%clk 0:05:46.8]} 28... Rf7 {[%clk
0:07:49.3]} 29. Qxa7 {[%clk 0:05:43.2]} 29... b5 {[%clk 0:07:29.7]} 30. Qc5+
{[%clk 0:05:22.4]} 30... Ke8 {[%clk 0:07:10.9]} 31. Qb6 {[%clk 0:04:46.6]} 31...
h5 {[%clk 0:06:58.8]} 32. Qb8+ {[%clk 0:04:44.4]} 32... Ke7 {[%clk 0:06:59.5]}
33. a4 {[%clk 0:04:25.5]} 33... Qf5 {[%clk 0:06:44.8]} 34. Qd6+ {[%clk
0:04:13.5]} 34... Ke8 {[%clk 0:06:40.6]} 35. Qb8+ {[%clk 0:04:10.7]} 35... Ke7
{[%clk 0:06:32]} 36. Qd6+ {[%clk 0:04:10.5]} 36... Ke8 {[%clk 0:06:32.3]} 37.
Qxc6+ {[%clk 0:04:12.1]} 37... Kf8 {[%clk 0:06:29.4]} 38. Qc5+ {[%clk 0:04:07]}
1-0

[Event "GrandPrix_30.05"]
[Site "Chess.com"]
[Date "2020.05.30"]
[Round "2"]
[White "rim1618"]
[Black "AnotherGrumpy"]
[Result "1/2-1/2"]
[WhiteElo "2373"]
[BlackElo "2037"]
[TimeControl "600+2"]
[EndTime "8:43:47 PDT"]
[Termination "Game drawn by agreement"]

1. Nf3 {[%clk 0:10:01.9]} 1... Nf6 {[%clk 0:09:49.4]} 2. g3 {[%clk 0:10:02.6]}
2... g6 {[%clk 0:09:50]} 3. b3 {[%clk 0:10:01.9]} 3... Bg7 {[%clk 0:09:50.8]} 4.
Bb2 {[%clk 0:10:03.3]} 4... O-O {[%clk 0:09:51.9]} 5. Bg2 {[%clk 0:10:04.6]}
5... d5 {[%clk 0:09:53.3]} 6. c4 {[%clk 0:10:04.9]} 6... dxc4 {[%clk 0:09:49.9]}
7. bxc4 {[%clk 0:10:04.9]} 7... c5 {[%clk 0:09:51]} 8. O-O {[%clk 0:10:05.2]}
8... Nc6 {[%clk 0:09:52.4]} 9. Nc3 {[%clk 0:10:06.1]} 9... Be6 {[%clk
0:09:47.5]} 10. d3 {[%clk 0:10:06.4]} 10... Rc8 {[%clk 0:09:36.4]} 11. Rb1
{[%clk 0:09:57.6]} 11... b6 {[%clk 0:09:36.1]} 12. Ng5 {[%clk 0:09:23.2]} 12...
Bd7 {[%clk 0:09:23.1]} 13. Nd5 {[%clk 0:09:12.8]} 13... e6 {[%clk 0:09:04.9]}
14. Nxf6+ {[%clk 0:09:07.5]} 14... Bxf6 {[%clk 0:09:06.8]} 15. Bxf6 {[%clk
0:09:08.4]} 15... Qxf6 {[%clk 0:09:08.7]} 16. Qd2 {[%clk 0:09:06.3]} 16... Nd4
{[%clk 0:09:04.6]} 17. h4 {[%clk 0:08:55.1]} 17... Bc6 {[%clk 0:09:01]} 18. Bxc6
{[%clk 0:08:45.3]} 18... Rxc6 {[%clk 0:08:59.1]} 19. a4 {[%clk 0:08:44.6]} 19...
Rd8 {[%clk 0:08:54.4]} 20. a5 {[%clk 0:08:38.1]} 20... Qe5 {[%clk 0:08:51.1]}
21. Rfe1 {[%clk 0:08:15]} 21... h6 {[%clk 0:08:34.5]} 22. Ne4 {[%clk 0:08:07.9]}
22... Qxe4 {[%clk 0:08:17.8]} 23. dxe4 {[%clk 0:08:01]} 23... Nf3+ {[%clk
0:08:17.9]} 24. exf3 {[%clk 0:08:02.1]} 24... Rxd2 {[%clk 0:08:19.4]} 25. axb6
{[%clk 0:07:42.4]} 25... Rxb6 {[%clk 0:08:14.4]} 26. Rxb6 {[%clk 0:07:11.7]}
26... axb6 {[%clk 0:08:13.7]} 27. Rb1 {[%clk 0:07:12.7]} 27... Rc2 {[%clk
0:08:12.2]} 28. Rxb6 {[%clk 0:07:13.4]} 28... Rxc4 {[%clk 0:08:13.6]} 29. e5
{[%clk 0:06:53.3]} 29... g5 {[%clk 0:07:57.7]} 30. hxg5 {[%clk 0:06:50]} 30...
hxg5 {[%clk 0:07:59.6]} 31. Kg2 {[%clk 0:06:51.4]} 31... Kg7 {[%clk 0:07:58.7]}
32. Rc6 {[%clk 0:06:43.8]} 32... Kg6 {[%clk 0:07:58.8]} 33. g4 {[%clk
0:06:42.7]} 33... Rc1 {[%clk 0:07:53.7]} 34. Rc8 {[%clk 0:06:38.3]} 34... c4
{[%clk 0:07:51.5]} 35. Rg8+ {[%clk 0:06:17.1]} 35... Kh6 {[%clk 0:07:51.5]} 36.
Rh8+ {[%clk 0:05:41.6]} 36... Kg7 {[%clk 0:07:52.6]} 37. Rc8 {[%clk 0:05:42]}
37... c3 {[%clk 0:07:50.8]} 38. f4 {[%clk 0:05:31.8]} 38... gxf4 {[%clk
0:07:49]} 39. Kf3 {[%clk 0:05:32.8]} 39... c2 {[%clk 0:06:49.4]} 40. Kxf4 {[%clk
0:05:31.3]} 40... Kg6 {[%clk 0:06:44.5]} 41. Rg8+ {[%clk 0:05:20.2]} 41... Kh7
{[%clk 0:06:43.3]} 42. Rc8 {[%clk 0:05:21]} 42... Kg7 {[%clk 0:06:36.4]} 43. Kg5
{[%clk 0:05:01.6]} 43... Re1 {[%clk 0:06:17.5]} 44. Rxc2 {[%clk 0:05:00.6]}
44... Rxe5+ {[%clk 0:06:18.7]} 45. Kh4 {[%clk 0:05:01]} 45... Ra5 {[%clk
0:06:16.5]} 1/2-1/2

[Event "GrandPrix_30.05"]
[Site "Chess.com"]
[Date "2020.05.30"]
[Round "2"]
[White "WoodlandMagic"]
[Black "LiamVrolijk"]
[Result "1/2-1/2"]
[WhiteElo "2105"]
[BlackElo "2416"]
[TimeControl "600+2"]
[EndTime "8:43:50 PDT"]
[Termination "Game drawn by repetition"]

1. d4 {[%clk 0:10:01.9]} 1... d5 {[%clk 0:09:58.5]} 2. c4 {[%clk 0:10:02.2]}
2... e6 {[%clk 0:09:59.3]} 3. Nc3 {[%clk 0:10:02.2]} 3... c5 {[%clk 0:10:00.4]}
4. cxd5 {[%clk 0:10:01.9]} 4... exd5 {[%clk 0:10:02.3]} 5. Nf3 {[%clk
0:10:02.9]} 5... Nc6 {[%clk 0:10:01.1]} 6. g3 {[%clk 0:10:02.1]} 6... Nf6 {[%clk
0:10:01]} 7. Bg2 {[%clk 0:10:02.2]} 7... cxd4 {[%clk 0:10:02.3]} 8. Nxd4 {[%clk
0:10:02.4]} 8... Bc5 {[%clk 0:10:03.9]} 9. Nb3 {[%clk 0:09:35.8]} 9... Bb6
{[%clk 0:10:03.3]} 10. O-O {[%clk 0:09:36]} 10... d4 {[%clk 0:10:03.2]} 11. Na4
{[%clk 0:09:37]} 11... O-O {[%clk 0:10:04]} 12. Bg5 {[%clk 0:08:58.4]} 12... Re8
{[%clk 0:10:03.1]} 13. Re1 {[%clk 0:08:54.7]} 13... h6 {[%clk 0:09:52.9]} 14.
Bxf6 {[%clk 0:08:54.1]} 14... Qxf6 {[%clk 0:09:54.8]} 15. Nxb6 {[%clk
0:08:54.9]} 15... axb6 {[%clk 0:09:55.5]} 16. Bxc6 {[%clk 0:08:56.3]} 16... bxc6
{[%clk 0:09:56.3]} 17. Qxd4 {[%clk 0:08:57.3]} 17... Qd8 {[%clk 0:09:56.9]} 18.
Qxd8 {[%clk 0:07:37.3]} 18... Rxd8 {[%clk 0:09:56.4]} 19. f3 {[%clk 0:07:33.4]}
19... Be6 {[%clk 0:09:11.8]} 20. Kf2 {[%clk 0:07:28.9]} 20... c5 {[%clk
0:09:06.8]} 21. Ke3 {[%clk 0:06:42.9]} 21... Re8 {[%clk 0:06:15.1]} 22. Kf2
{[%clk 0:06:37.7]} 22... Red8 {[%clk 0:06:05.9]} 23. Ke3 {[%clk 0:06:37.7]}
23... Ra4 {[%clk 0:05:53.5]} 24. Nc1 {[%clk 0:04:47.2]} 24... Re8 {[%clk
0:05:51]} 25. Kf2 {[%clk 0:04:45.5]} 25... Rd8 {[%clk 0:05:33.7]} 26. Ke3 {[%clk
0:04:35.3]} 26... Re8 {[%clk 0:05:08]} 27. Kf2 {[%clk 0:04:34.7]} 27... Rd8
{[%clk 0:05:08.2]} 28. Ke3 {[%clk 0:04:34.4]} 1/2-1/2